fUST/lending_fUST_20240412
["ID","MTS","AMOUNT","RATE_DAILY","PERIOD"]
[322168135,1712862441286,-187.33083336,0.00032876,14]
[322168136,1712862441305,-500.0,0.00032876,14]
[322168137,1712862441324,-500.0,0.00032876,14]
[322168138,1712862441344,-500.0,0.00032876,14]
[322168139,1712862441363,-500.0,0.00032876,14]
[322168140,1712862441383,-500.0,0.00032876,14]
[322168141,1712862441403,-500.0,0.00032876,14]
[322168142,1712862441423,-500.0,0.00032876,14]
[322168143,1712862441442,-500.0,0.00032876,14]
[322168144,1712862441462,-500.0,0.00032876,14]
[322168145,1712862441480,-500.0,0.00032876,14]
[322168146,1712862441499,-500.0,0.00032876,14]
[322168147,1712862441631,-500.0,0.00032876,14]
[322168148,1712862441652,-518.5419639,0.00032876,14]
[322168149,1712862441671,-500.0,0.00032876,14]
[322168150,1712862441691,-500.0,0.00032876,14]
[322168151,1712862441711,-500.0,0.00032876,14]
[322168152,1712862441737,-500.0,0.00032876,14]
[322168153,1712862441768,-506.19657006,0.00032876,14]
[322168154,1712862441787,-423.09058609,0.00032876,14]
[322168155,1712862441807,-4351.18775877,0.00032876,14]
[322168156,1712862442086,-153.7805529,0.00032776,6]
[322168157,1712862450178,-228.44193578,0.00032776,6]
[322168158,1712862450201,-2671.46585637,0.00032876,14]
[322168159,1712862454105,-8780.23638486,0.00032876,14]
[322168160,1712862454128,-506.0829126,0.00032876,14]
[322168161,1712862454150,-500.0,0.00032876,14]
[322168162,1712862454173,-1735.72,0.00032876,14]
[322168163,1712862454193,-14867.56538968,0.00032876,4]
[322168164,1712862454212,-500.0,0.00032876,14]
[322168165,1712862454232,-5502.05,0.00032876,14]
[322168166,1712862454253,-500.0,0.00032876,14]
[322168167,1712862454275,-500.0,0.00032988,14]
[322168168,1712862454295,-500.0,0.00032988,14]
[322168169,1712862454317,-500.0,0.00032988,14]
[322168170,1712862454341,-699.58,0.00032988,14]
[322168171,1712862454364,-507.34,0.00032988,14]
[322168172,1712862454487,-422.97323723,0.00032988,14]
[322168173,1712862454515,-685.94,0.00032988,14]
[322168174,1712862454535,-752.5,0.00032988,14]
[322168175,1712862454556,-500.0,0.00032988,14]
[322168176,1712862454576,-615.32305045,0.00032988,14]
[322168177,1712862454596,-2390.29,0.00032988,14]
[322168178,1712862454615,-500.0,0.00032988,14]
[322168179,1712862454635,-270.02691491,0.00032988,14]
[322168180,1712862454658,-151.0,0.00032988,2]
[322168181,1712862454678,-500.0,0.00032988,14]
[322168182,1712862454697,-154.0,0.00033,2]
[322168183,1712862454716,-1000.0,0.00033,2]
[322168184,1712862454739,-185.21431095,0.00033149,4]
[322168185,1712862454759,-500.0,0.0003315,14]
[322168186,1712862454780,-500.0,0.0003315,14]
[322168187,1712862454801,-500.0,0.0003315,14]
[322168188,1712862454820,-260.30017529,0.0003315,14]
[322168189,1712862454839,-500.0,0.0003315,14]
[322168190,1712862454860,-510.10060838,0.0003315,14]
[322168191,1712862454882,-2680.15,0.0003315,2]
[322168192,1712862454902,-500.0,0.0003315,14]
[322168193,1712862454922,-500.0,0.0003315,14]
[322168194,1712862454941,-500.0,0.0003315,14]
[322168195,1712862454961,-500.0,0.0003315,14]
[322168196,1712862454980,-500.0,0.0003315,14]
[322168197,1712862455000,-500.0,0.0003315,14]
[322168198,1712862455019,-500.0,0.0003315,14]
[322168199,1712862455038,-506.30951657,0.0003315,14]
[322168200,1712862455059,-500.0,0.0003315,14]
[322168201,1712862455079,-511.51799614,0.0003315,14]
[322168202,1712862455099,-564.24993462,0.0003315,14]
[322168203,1712862455119,-500.0,0.0003315,14]
[322168204,1712862455139,-500.0,0.0003315,14]
[322168205,1712862455160,-500.0,0.0003315,14]
[322168206,1712862455185,-151.0,0.0003315,2]
[322168207,1712862455205,-370.34944153,0.0003315,14]
[322168208,1712862455229,-494.221465,0.0003315,2]
[322168209,1712862455250,-494.221465,0.0003315,2]
[322168210,1712862455270,-505.052654,0.0003315,14]
[322168211,1712862455290,-151.0,0.0003315,2]
[322168212,1712862455312,-510.63107568,0.0003315,14]
[322168213,1712862455340,-151.0,0.0003315,2]
[322168214,1712862455362,-267.268844,0.0003315,2]
[322168215,1712862455385,-15802.89,0.0003315,14]
[322168216,1712862455408,-151.0,0.0003315,2]
[322168217,1712862455429,-500.0,0.0003315,14]
[322168218,1712862455451,-1735.72,0.0003315,14]
[322168219,1712862455472,-565.65845339,0.0003315,14]
[322168220,1712862455493,-5502.05,0.0003315,14]
[322168221,1712862455518,-260.04746514,0.0003315,14]
[322168222,1712862455543,-154.0,0.00033151,2]
[322168223,1712862455564,-500.0,0.00033262,14]
[322168224,1712862455585,-500.0,0.00033262,14]
[322168225,1712862455605,-500.0,0.00033262,14]
[322168226,1712862455626,-699.58,0.00033262,14]
[322168227,1712862455647,-507.34,0.00033262,14]
[322168228,1712862455667,-685.94,0.00033262,14]
[322168229,1712862455687,-752.5,0.00033262,14]
[322168230,1712862455708,-500.0,0.00033262,14]
[322168231,1712862455728,-2390.29,0.00033262,14]
[322168232,1712862455750,-500.0,0.00033262,14]
[322168233,1712862455770,-494.221465,0.00033262,2]
[322168234,1712862455792,-494.221465,0.00033262,2]
[322168235,1712862455812,-151.0,0.00033262,2]
[322168236,1712862455854,-151.0,0.00033262,2]
[322168237,1712862455876,-237.428506,0.00033262,2]
[322168238,1712862455897,-500.0,0.00033262,14]
[322168239,1712862455919,-254.76142661,0.00033423,7]
[322168240,1712862455939,-156.68813882,0.00033423,7]
[322168241,1712862455961,-500.0,0.00033423,7]
[322168242,1712862455984,-459.21606194,0.00033423,7]
[322168243,1712862456005,-618.2561912,0.00033423,7]
[322168244,1712862456028,-476.79494397,0.00033423,7]
[322168245,1712862456048,-181.40027232,0.00033423,7]
[322168246,1712862456070,-217.29828372,0.00033423,7]
[322168247,1712862548456,456.99573502,0.0003105,2]
[322168276,1712862632280,-400.0,0.00032875,2]
[322168278,1712862632290,-1366.75,0.00032876,14]
[322168280,1712862632300,-503.21998664,0.00032876,14]
[322168282,1712862632310,-560.73,0.00032876,14]
[322168284,1712862632320,-1254.07,0.00032876,14]
[322168286,1712862632331,-500.0,0.00032876,14]
[322168289,1712862632341,-776.7,0.00032876,14]
[322168291,1712862632350,-1134.94,0.00032876,14]
[322168293,1712862632361,-666.23,0.00032876,14]
[322168295,1712862632372,-1261.33,0.00032876,14]
[322168297,1712862632381,-500.0,0.00032876,14]
[322168298,1712862632391,-500.0,0.00032876,14]
[322168300,1712862632400,-1591.08,0.00032876,14]
[322168301,1712862632409,-6687.11,0.00032876,14]
[322168302,1712862632418,-1831.84,0.00032876,14]
[322168303,1712862632428,-24900.0,0.00032983,2]
[322168304,1712862632437,-635.01340647,0.00032988,14]
[322168305,1712862632445,-500.0,0.00032988,14]
[322168306,1712862632454,-500.0,0.00032988,14]
[322168307,1712862632463,-1366.75,0.0003315,14]
[322168308,1712862632473,-560.73,0.0003315,14]
[322168309,1712862632481,-1254.07,0.0003315,14]
[322168310,1712862632490,-500.0,0.0003315,14]
[322168311,1712862632500,-776.7,0.0003315,14]
[322168312,1712862632509,-1134.94,0.0003315,14]
[322168313,1712862632518,-666.23,0.0003315,14]
[322168314,1712862632527,-1261.33,0.0003315,14]
[322168315,1712862632537,-500.0,0.0003315,14]
[322168316,1712862632547,-500.0,0.0003315,14]
[322168317,1712862632556,-1591.08,0.0003315,14]
[322168318,1712862632565,-6687.11,0.0003315,14]
[322168319,1712862632574,-1831.84,0.0003315,14]
[322168320,1712862632583,-500.0,0.00033262,14]
[322168321,1712862632592,-500.0,0.00033262,14]
[322168322,1712862632602,-500.0,0.00033424,14]
[322168323,1712862632612,-500.0,0.00033424,14]
[322168324,1712862632621,-500.0,0.00033424,14]
[322168325,1712862632631,-500.0,0.00033424,14]
[322168326,1712862632640,-2680.15,0.00033424,2]
[322168327,1712862632649,-500.0,0.00033424,14]
[322168328,1712862632659,-500.0,0.00033424,14]
[322168329,1712862632668,-507.11250318,0.00033424,14]
[322168330,1712862632677,-500.0,0.00033424,14]
[322168331,1712862632687,-537.78369717,0.00033424,14]
[322168332,1712862632696,-500.0,0.00033424,14]
[322168333,1712862632706,-500.0,0.00033424,14]
[322168334,1712862632715,-500.0,0.00033424,14]
[322168335,1712862632724,-500.0,0.00033424,14]
[322168336,1712862632734,-500.0,0.00033424,14]
[322168337,1712862632743,-15802.89,0.00033424,14]
[322168338,1712862632752,-500.0,0.00033424,14]
[322168339,1712862632761,-2810.30290859,0.00033424,14]
[322168351,1712862638354,-176.7106089,0.0003225,2]
[322168352,1712862638364,-500.0,0.00032876,14]
[322168353,1712862638375,-500.0,0.0003315,14]
[322168354,1712862638385,-2691.74709141,0.00033424,14]
[322168355,1712862638395,-1366.75,0.00033424,14]
[322168356,1712862638406,-560.73,0.00033424,14]
[322168357,1712862638415,-1254.07,0.00033424,14]
[322168358,1712862638426,-500.0,0.00033424,14]
[322168359,1712862638436,-776.7,0.00033424,14]
[322168360,1712862638445,-1134.94,0.00033424,14]
[322168361,1712862638456,-666.23,0.00033424,14]
[322168362,1712862638466,-1261.33,0.00033424,14]
[322168363,1712862638478,-500.0,0.00033424,14]
[322168364,1712862638488,-500.0,0.00033424,14]
[322168365,1712862638498,-1591.08,0.00033424,14]
[322168366,1712862638507,-6687.11,0.00033424,14]
[322168367,1712862638516,-1831.84,0.00033424,14]
[322168368,1712862638526,-500.0,0.00033424,14]
[322168369,1712862638537,-336.05873986,0.00033535,7]
[322168370,1712862638547,-264.96693908,0.00033535,7]
[322168371,1712862638558,-500.0,0.00033536,14]
[322168372,1712862638568,-507.34,0.00033536,14]
[322168373,1712862638578,-685.94,0.00033536,14]
[322168374,1712862638589,-752.5,0.00033536,14]
[322168375,1712862638599,-500.0,0.00033536,14]
[322168376,1712862638609,-2390.29,0.00033536,14]
[322168377,1712862638619,-500.0,0.00033536,14]
[322168378,1712862638630,-500.0,0.00033536,14]
[322168379,1712862638640,-151.0,0.00033536,2]
[322168380,1712862638651,-151.0,0.00033536,2]
[322168381,1712862638662,-151.0,0.00033536,2]
[322168382,1712862638673,-500.0,0.00033536,14]
[322168383,1712862638684,-512.15117389,0.00033536,14]
[322168384,1712862638695,-2565.38222888,0.00033616,4]
[322168385,1712862638705,-500.0,0.00033698,14]
[322168386,1712862638716,-500.0,0.00033698,14]
[322168387,1712862638727,-500.0,0.00033698,14]
[322168388,1712862638738,-416.71649842,0.00033698,14]
[322168389,1712862638747,-2680.15,0.00033698,2]
[322168390,1712862638759,-500.0,0.00033698,14]
[322168391,1712862638769,-500.0,0.00033698,14]
[322168392,1712862638780,-503.43858972,0.00033698,14]
[322168393,1712862638792,-500.0,0.00033698,14]
[322168394,1712862638802,-500.0,0.00033698,14]
[322168397,1712862638812,-500.0,0.00033698,14]
[322168400,1712862638821,-500.0,0.00033698,14]
[322168420,1712862638931,-500.0,0.00033698,14]
[322168422,1712862638943,-500.0,0.00033698,14]
[322168424,1712862638954,-151.0,0.00033698,2]
[322168426,1712862638964,-5502.05,0.00033698,14]
[322168428,1712862638976,-151.0,0.00033698,2]
[322168430,1712862638988,-265.282724,0.00033698,2]
[322168432,1712862638999,-1366.75,0.00033698,14]
[322168434,1712862639009,-560.73,0.00033698,14]
[322168436,1712862639019,-1254.07,0.00033698,14]
[322168438,1712862639029,-500.0,0.00033698,14]
[322168440,1712862639040,-776.7,0.00033698,14]
[322168442,1712862639051,-1134.94,0.00033698,14]
[322168444,1712862639063,-666.23,0.00033698,14]
[322168446,1712862639073,-1261.33,0.00033698,14]
[322168448,1712862639084,-500.0,0.00033698,14]
[322168450,1712862639093,-500.0,0.00033698,14]
[322168452,1712862639102,-1591.08,0.00033698,14]
[322168454,1712862639112,-6687.11,0.00033698,14]
[322168456,1712862639122,-1831.84,0.00033698,14]
[322168458,1712862639132,-506.99408068,0.00033698,14]
[322168460,1712862639142,-150.0,0.00033774,4]
[322168462,1712862639151,-500.0,0.0003381,14]
[322168464,1712862639160,-507.34,0.0003381,14]
[322168466,1712862639170,-685.94,0.0003381,14]
[322168468,1712862639180,-752.5,0.0003381,14]
[322168470,1712862639191,-503.85222214,0.0003381,14]
[322168472,1712862639202,-151.0,0.0003381,2]
[322168474,1712862639212,-2390.29,0.0003381,14]
[322168476,1712862639225,-500.0,0.0003381,14]
[322168478,1712862639236,-500.0,0.0003381,14]
[322168480,1712862639246,-500.0,0.0003381,14]
[322168482,1712862639256,-153.5050713,0.00033823,7]
[322168484,1712862639269,-151.21781736,0.00033859,7]
[322168486,1712862639279,-3843.22920607,0.00033918,4]
[322168488,1712862639289,-221.63830907,0.00033918,4]
[322168490,1712862639301,-340.89846798,0.00033918,4]
[322168492,1712862639312,-184.42210436,0.00033919,4]
[322168494,1712862639322,-1332.12231414,0.0003392,2]
[322168496,1712862639333,-500.0,0.00033972,14]
[322168498,1712862639344,-500.0,0.00033972,14]
[322168500,1712862639354,-500.0,0.00033972,14]
[322168502,1712862639364,-2680.15,0.00033972,2]
[322168504,1712862639373,-500.0,0.00033972,14]
[322168506,1712862639383,-500.0,0.00033972,14]
[322168508,1712862639393,-511.0966681,0.00033972,14]
[322168510,1712862639404,-500.0,0.00033972,14]
[322168513,1712862639414,-500.0,0.00033972,14]
[322168515,1712862639424,-500.0,0.00033972,14]
[322168516,1712862639434,-500.0,0.00033972,14]
[322168518,1712862639445,-500.0,0.00033972,14]
[322168520,1712862639455,-151.0,0.00033972,2]
[322168522,1712862639465,-5502.05,0.00033972,14]
[322168524,1712862639474,-151.0,0.00033972,2]
[322168526,1712862639484,-1366.75,0.00033972,14]
[322168528,1712862639493,-560.73,0.00033972,14]
[322168530,1712862639502,-1254.07,0.00033972,14]
[322168532,1712862639511,-500.0,0.00033972,14]
[322168533,1712862639520,-776.7,0.00033972,14]
[322168535,1712862639529,-1134.94,0.00033972,14]
[322168537,1712862639538,-666.23,0.00033972,14]
[322168539,1712862639546,-1261.33,0.00033972,14]
[322168540,1712862639557,-500.0,0.00033972,14]
[322168542,1712862639566,-507.35814863,0.00033972,14]
[322168544,1712862639575,-1591.08,0.00033972,14]
[322168546,1712862639586,-6687.11,0.00033972,14]
[322168548,1712862639595,-1831.84,0.00033972,14]
[322168550,1712862639605,-166.22814114,0.00034079,7]
[322168552,1712862639614,-500.0,0.00034084,14]
[322168554,1712862639623,-507.34,0.00034084,14]
[322168556,1712862639633,-685.94,0.00034084,14]
[322168558,1712862639641,-752.5,0.00034084,14]
[322168560,1712862639650,-151.0,0.00034084,2]
[322168562,1712862639659,-2390.29,0.00034084,14]
[322168564,1712862639668,-500.0,0.00034084,14]
[322168566,1712862639678,-500.0,0.00034084,14]
[322168568,1712862639687,-151.0,0.00034084,2]
[322168570,1712862639696,-151.0,0.00034084,2]
[322168572,1712862639705,-500.0,0.00034084,14]
[322168574,1712862639714,-996.32210941,0.00034246,5]
[322168576,1712862639723,-500.0,0.00034246,14]
[322168578,1712862639732,-500.0,0.00034246,14]
[322168580,1712862639742,-500.0,0.00034246,14]
[322168582,1712862639751,-2680.15,0.00034246,2]
[322168584,1712862639760,-500.0,0.00034246,14]
[322168586,1712862639769,-500.0,0.00034246,14]
[322168588,1712862639778,-500.0,0.00034246,14]
[322168590,1712862639787,-500.0,0.00034246,14]
[322168592,1712862639798,-500.0,0.00034246,14]
[322168593,1712862639807,-500.0,0.00034246,14]
[322168595,1712862639818,-500.0,0.00034246,14]
[322168597,1712862639827,-151.0,0.00034246,2]
[322168599,1712862639837,-5502.05,0.00034246,14]
[322168601,1712862639847,-151.0,0.00034246,2]
[322168604,1712862639857,-1366.75,0.00034246,14]
[322168605,1712862639868,-560.73,0.00034246,14]
[322168607,1712862639877,-1254.07,0.00034246,14]
[322168609,1712862639886,-500.0,0.00034246,14]
[322168610,1712862639895,-776.7,0.00034246,14]
[322168611,1712862639904,-1134.94,0.00034246,14]
[322168612,1712862639913,-395.377172,0.00034246,2]
[322168613,1712862639922,-395.377172,0.00034246,2]
[322168614,1712862639931,-666.23,0.00034246,14]
[322168615,1712862639940,-151.0,0.00034246,2]
[322168616,1712862639949,-1261.33,0.00034246,14]
[322168617,1712862639958,-151.0,0.00034246,2]
[322168618,1712862639967,-500.0,0.00034246,14]
[322168619,1712862639975,-1591.08,0.00034246,14]
[322168620,1712862639984,-6687.11,0.00034246,14]
[322168621,1712862639993,-151.0,0.00034246,2]
[322168622,1712862640002,-1831.84,0.00034246,14]
[322168623,1712862640011,-188.3211388,0.00034282,4]
[322168624,1712862640020,-4485.67124355,0.00034282,4]
[322168625,1712862640030,-623.90488631,0.00034282,4]
[322168626,1712862640039,-1866.00896233,0.00034283,4]
[322168627,1712862640048,-2935.70815242,0.00034283,4]
[322168628,1712862640059,-500.0,0.00034284,14]
[322168629,1712862640069,-502.24550169,0.00034284,14]
[322168630,1712862640078,-500.0,0.00034284,14]
[322168631,1712862640087,-531.03193404,0.00034284,14]
[322168632,1712862640097,-500.0,0.00034284,14]
[322168633,1712862640106,-500.0,0.00034284,14]
[322168634,1712862640115,-526.82,0.00034284,14]
[322168635,1712862640125,-500.0,0.00034284,14]
[322168636,1712862640134,-353.42466151,0.00034284,14]
[322168637,1712862640143,-500.0,0.00034284,14]
[322168638,1712862640152,-500.0,0.00034284,14]
[322168639,1712862640160,-500.0,0.00034284,14]
[322168641,1712862640169,-505.22713302,0.00034284,14]
[322168642,1712862640183,-500.0,0.00034284,14]
[322168643,1712862640196,-500.0,0.00034284,14]
[322168645,1712862640205,-500.0,0.00034284,14]
[322168647,1712862640215,-500.0,0.00034284,14]
[322168649,1712862640225,-500.0,0.00034284,14]
[322168650,1712862640238,-501.18238225,0.00034284,14]
[322168652,1712862640247,-500.0,0.00034284,14]
[322168655,1712862640256,-500.0,0.00034284,14]
[322168657,1712862640266,-500.0,0.00034284,14]
[322168659,1712862640277,-500.0,0.00034284,14]
[322168660,1712862640286,-549.51197242,0.00034284,14]
[322168663,1712862640296,-500.0,0.00034284,14]
[322168664,1712862640309,-300.0,0.00034284,7]
[322168666,1712862640320,-500.0,0.00034284,14]
[322168668,1712862640333,-500.0,0.00034284,14]
[322168671,1712862640343,-503.73532672,0.00034284,14]
[322168673,1712862640352,-500.0,0.00034284,14]
[322168674,1712862640362,-500.0,0.00034284,14]
[322168676,1712862640374,-500.0,0.00034284,14]
[322168678,1712862640386,-500.0,0.00034284,14]
[322168680,1712862640396,-500.0,0.00034284,14]
[322168683,1712862640406,-2025.57,0.00034284,14]
[322168685,1712862640416,-500.0,0.00034284,14]
[322168687,1712862640427,-561.2,0.00034284,14]
[322168689,1712862640436,-500.0,0.00034284,14]
[322168690,1712862640447,-500.0,0.00034284,14]
[322168693,1712862640457,-500.0,0.00034284,14]
[322168694,1712862640467,-976.91,0.00034284,14]
[322168696,1712862640478,-2133.43,0.00034284,14]
[322168698,1712862640487,-1776.77,0.00034284,14]
[322168700,1712862640497,-151.0,0.00034284,2]
[322168703,1712862640507,-151.0,0.00034284,2]
[322168704,1712862640517,-918.23,0.00034284,14]
[322168707,1712862640527,-151.0,0.00034284,2]
[322168708,1712862640537,-151.0,0.00034284,2]
[322168710,1712862640548,-513.31933967,0.00034284,14]
[322168712,1712862640559,-508.24,0.00034284,14]
[322168715,1712862640568,-1933.25,0.00034284,14]
[322168716,1712862640579,-500.0,0.00034284,14]
[322168719,1712862640588,-259.92770034,0.00034284,14]
[322168720,1712862640597,-500.0,0.00034284,14]
[322168722,1712862640607,-500.0,0.00034284,14]
[322168724,1712862640617,-500.0,0.00034284,14]
[322168727,1712862640626,-500.0,0.00034284,14]
[322168728,1712862640636,-554.66273298,0.00034284,14]
[322168731,1712862640651,-5157.08786749,0.00034284,14]
[322168736,1712862640689,-1229.50272306,0.00034284,14]
[322168753,1712862640851,-13394.44667647,0.00034284,14]
[322168754,1712862640861,-500.0,0.00034284,14]
[322168757,1712862640872,-513.50932358,0.00034284,14]
[322168758,1712862640883,-500.0,0.00034284,14]
[322168761,1712862640893,-507.03594079,0.00034284,14]
[322168762,1712862640903,-500.0,0.00034284,14]
[322168765,1712862640914,-395.377172,0.00034284,2]
[322168766,1712862640924,-395.377172,0.00034284,2]
[322168768,1712862640935,-4064.31,0.00034284,14]
[322168770,1712862640945,-500.0,0.00034284,14]
[322168773,1712862640956,-395.377172,0.00034284,2]
[322168774,1712862640966,-1237.81,0.00034284,14]
[322168776,1712862640978,-395.377172,0.00034284,2]
[322168779,1712862640988,-158.09608025,0.00034284,14]
[322168788,1712862641075,-500.0,0.00034284,14]
[322168790,1712862641084,-505.17643698,0.00034284,14]
[322168792,1712862641095,-500.0,0.00034284,14]
[322168794,1712862641106,-151.0,0.00034284,2]
[322168796,1712862641116,-151.0,0.00034284,2]
[322168798,1712862641127,-151.0,0.00034284,2]
[322168800,1712862641136,-500.0,0.00034284,14]
[322168802,1712862641146,-500.0,0.00034284,14]
[322168804,1712862641155,-500.0,0.00034284,14]
[322168806,1712862641165,-500.0,0.00034284,14]
[322168808,1712862641175,-151.0,0.00034284,2]
[322168810,1712862641184,-151.0,0.00034284,2]
[322168812,1712862641194,-151.0,0.00034284,2]
[322168813,1712862641205,-500.0,0.00034284,14]
[322168815,1712862641216,-500.0,0.00034284,14]
[322168817,1712862641227,-542.88744001,0.00034284,14]
[322168819,1712862641239,-3203.12,0.00034284,14]
[322168821,1712862641248,-151.0,0.00034284,2]
[322168823,1712862641258,-234.963692,0.00034284,2]
[322168825,1712862641268,-961.23,0.00034284,14]
[322168827,1712862641278,-500.0,0.00034284,14]
[322168829,1712862641288,-1644.13,0.00034284,14]
[322168831,1712862641298,-500.0,0.00034284,14]
[322168833,1712862641309,-151.0,0.00034285,2]
[322168835,1712862641320,-500.0,0.00034358,14]
[322168837,1712862641330,-507.34,0.00034358,14]
[322168839,1712862641340,-685.94,0.00034358,14]
[322168841,1712862641350,-752.5,0.00034358,14]
[322168843,1712862641361,-2390.29,0.00034358,14]
[322168845,1712862641371,-500.0,0.00034358,14]
[322168847,1712862641381,-500.0,0.00034358,14]
[322168849,1712862641390,-500.0,0.00034358,14]
[322168851,1712862641400,-382.22248867,0.00034365,6]
[322168853,1712862641409,-1000.0,0.000345,2]
[322168855,1712862641418,-151.0,0.000345,2]
[322168857,1712862641427,-1466.61272517,0.00034518,4]
[322168859,1712862641436,-207.18381603,0.00034518,4]
[322168861,1712862641444,-342.49538997,0.00034518,4]
[322168863,1712862641453,-267.08067075,0.00034519,4]
[322168865,1712862641465,-500.0,0.0003452,14]
[322168867,1712862641475,-500.0,0.0003452,14]
[322168869,1712862641484,-500.0,0.0003452,14]
[322168871,1712862641494,-2680.15,0.0003452,2]
[322168873,1712862641502,-500.0,0.0003452,14]
[322168875,1712862641512,-500.0,0.0003452,14]
[322168877,1712862641523,-500.0,0.0003452,14]
[322168879,1712862641532,-500.0,0.0003452,14]
[322168881,1712862641541,-500.0,0.0003452,14]
[322168883,1712862641551,-500.0,0.0003452,14]
[322168885,1712862641561,-500.0,0.0003452,14]
[322168887,1712862641570,-151.0,0.0003452,2]
[322168889,1712862641579,-5502.05,0.0003452,14]
[322168891,1712862641588,-151.0,0.0003452,2]
[322168893,1712862641597,-1366.75,0.0003452,14]
[322168895,1712862641607,-560.73,0.0003452,14]
[322168897,1712862641616,-1254.07,0.0003452,14]
[322168899,1712862641625,-393.75733556,0.0003452,14]
[322168901,1712862641635,-776.7,0.0003452,14]
[322168903,1712862641644,-1134.94,0.0003452,14]
[322168905,1712862641653,-395.377172,0.0003452,2]
[322168907,1712862641663,-395.377172,0.0003452,2]
[322168909,1712862641673,-666.23,0.0003452,14]
[322168911,1712862641682,-151.0,0.0003452,2]
[322168913,1712862641692,-1261.33,0.0003452,14]
[322168915,1712862641702,-151.0,0.0003452,2]
[322168917,1712862641711,-500.0,0.0003452,14]
[322168919,1712862641722,-1591.08,0.0003452,14]
[322168921,1712862641730,-6687.11,0.0003452,14]
[322168923,1712862641740,-1831.84,0.0003452,14]
[322168925,1712862641750,-154.0,0.00034521,2]
[322168927,1712862641759,-151.21781736,0.0003454,7]
[322168929,1712862641769,-508.37236142,0.00034558,14]
[322168931,1712862641778,-347.84297722,0.00034558,14]
[322168933,1712862641787,-503.29201479,0.00034558,14]
[322168935,1712862641796,-500.0,0.00034558,14]
[322168937,1712862641806,-526.82,0.00034558,14]
[322168939,1712862641815,-500.0,0.00034558,14]
[322168940,1712862641824,-500.0,0.00034558,14]
[322168942,1712862641834,-509.56425413,0.00034558,14]
[322168944,1712862641843,-500.0,0.00034558,14]
[322168946,1712862641854,-459.32823551,0.00034558,14]
[322168948,1712862641864,-500.0,0.00034558,14]
[322168950,1712862641875,-500.0,0.00034558,14]
[322168952,1712862641886,-500.0,0.00034558,14]
[322168954,1712862641896,-516.65577381,0.00034558,14]
[322168956,1712862641907,-500.0,0.00034558,14]
[322168958,1712862641916,-500.0,0.00034558,14]
[322168960,1712862641925,-500.0,0.00034558,14]
[322168962,1712862641934,-300.0,0.00034558,7]
[322168964,1712862641943,-500.0,0.00034558,14]
[322168966,1712862641952,-500.0,0.00034558,14]
[322168968,1712862641961,-500.0,0.00034558,14]
[322168970,1712862641971,-500.0,0.00034558,14]
[322168972,1712862641980,-331.51454962,0.00034558,14]
[322168974,1712862641989,-500.0,0.00034558,14]
[322168976,1712862641998,-500.0,0.00034558,14]
[322168978,1712862642007,-2025.57,0.00034558,14]
[322168979,1712862642017,-500.0,0.00034558,14]
[322168981,1712862642030,-561.2,0.00034558,14]
[322168983,1712862642040,-500.0,0.00034558,14]